[Event "NJSK 2023 Jeugd C"]
[Site "Almelo, Netherlands"]
[Date "2023.04.30"]
[Round "1.1"]
[White "Aravindhan, Achyuth"]
[Black "Van Batenburg, Mees"]
[Result "1-0"]
[TimeControl "90min/40moves + 30min + 30sec/move"]
[WhiteElo "1833"]
[BlackElo "2054"]

1. e4 {[%clk 01:30:57]} {[%emt 00:00:03]} e6 {[%clk 01:30:41]} {[%emt
00:00:20]} 2. d4 {[%clk 01:31:18]} {[%emt 00:00:09]} d5 {[%clk 01:31:07]}
{[%emt 00:00:03]} 3. Nd2 {[%clk 01:31:37]} {[%emt 00:00:12]} Be7 {[%clk
01:30:53]} {[%emt 00:00:43]} 4. Bd3 {[%clk 01:28:17]} {[%emt 00:03:51]} c5
{[%clk 01:30:58]} {[%emt 00:00:25]} 5. dxc5 {[%clk 01:24:00]} {[%emt 00:04:47]}
Nf6 {[%clk 01:20:56]} {[%emt 00:10:31]} 6. exd5 {[%clk 01:13:08]} {[%emt
00:11:22]} Qxd5 {[%clk 01:15:10]} {[%emt 00:06:16]} 7. Ngf3 {[%clk 01:08:39]}
{[%emt 00:04:58]} Bxc5 {[%clk 01:13:58]} {[%emt 00:01:41]} 8. O-O {[%clk
01:08:41]} {[%emt 00:00:29]} O-O {[%clk 01:10:07]} {[%emt 00:04:21]} 9. Nb3
{[%clk 01:05:43]} {[%emt 00:03:28]} Bb6 {[%clk 01:02:31]} {[%emt 00:08:06]} 10.
Bf4 {[%clk 00:59:45]} {[%emt 00:06:27]} Nc6 {[%clk 01:00:29]} {[%emt 00:02:33]}
11. Qe2 {[%clk 00:58:35]} {[%emt 00:01:40]} Qh5 {[%clk 00:37:07]} {[%emt
00:23:52]} 12. h3 {[%clk 00:48:18]} {[%emt 00:10:47]} Re8 {[%clk 00:31:22]}
{[%emt 00:06:15]} 13. Rfe1 {[%clk 00:39:15]} {[%emt 00:09:33]} Nd5 {[%clk
00:20:13]} {[%emt 00:11:39]} 14. Bg3 {[%clk 00:38:41]} {[%emt 00:01:03]} Bc7
{[%clk 00:16:26]} {[%emt 00:04:18]} 15. Bxc7 {[%clk 00:28:25]} {[%emt
00:10:45]} Nxc7 {[%clk 00:16:53]} {[%emt 00:00:04]} 16. Rad1 {[%clk 00:28:07]}
{[%emt 00:00:47]} Nd5 {[%clk 00:13:16]} {[%emt 00:04:08]} 17. Bxh7+ {[%clk
00:18:05]} {[%emt 00:10:30]} Kxh7 {[%clk 00:12:19]} {[%emt 00:01:27]} 18. Qe4+
{[%clk 00:18:25]} {[%emt 00:00:10]} f5 {[%clk 00:09:57]} {[%emt 00:02:52]} 19.
Rxd5 {[%clk 00:18:33]} {[%emt 00:00:22]} Bd7 {[%clk 00:04:42]} {[%emt
00:05:45]} 20. Rc5 {[%clk 00:16:20]} {[%emt 00:02:42]} b6 {[%clk 00:04:58]}
{[%emt 00:00:16]} 21. Qd3 {[%clk 00:16:00]} {[%emt 00:00:49]} bxc5 {[%clk
00:04:29]} {[%emt 00:00:59]} 22. Qxd7 {[%clk 00:16:22]} {[%emt 00:00:08]} Nb4
{[%clk 00:02:19]} {[%emt 00:02:41]} 23. Nxc5 {[%clk 00:15:29]} {[%emt
00:01:22]} Rad8 {[%clk 00:02:29]} {[%emt 00:00:19]} 24. Qxa7 {[%clk 00:15:32]}
{[%emt 00:00:27]} Nxc2 {[%clk 00:01:20]} {[%emt 00:01:40]} 25. Rxe6 {[%clk
00:13:10]} {[%emt 00:02:51]} Rxe6 {[%clk 00:00:52]} {[%emt 00:00:58]} 26. Nxe6
{[%clk 00:13:29]} {[%emt 00:00:11]} Rd1+ {[%clk 00:00:52]} {[%emt 00:00:30]} 27.
Kh2 {[%clk 00:13:47]} {[%emt 00:00:11]} Qg6 {[%clk 00:00:35]} {[%emt 00:00:47]}
28. Nf8+ {[%clk 00:14:12]} {[%emt 00:00:05]} 1-0

[Event "NJSK 2023 Jeugd C"]
[Site "Almelo, Netherlands"]
[Date "2023.04.30"]
[Round "1.2"]
[White "Zhu, Chenwu"]
[Black "Ten Kate, Gustav"]
[Result "1-0"]
[TimeControl "90min/40moves + 30min + 30sec/move"]
[WhiteElo "2052"]
[BlackElo "1815"]

1. e4 {[%clk 01:30:58]} {[%emt 00:00:01]} e6 {[%clk 01:30:41]} {[%emt
00:00:19]} 2. d4 {[%clk 01:31:22]} {[%emt 00:00:06]} d5 {[%clk 01:31:03]}
{[%emt 00:00:08]} 3. Nd2 {[%clk 01:31:46]} {[%emt 00:00:06]} Nf6 {[%clk
01:31:24]} {[%emt 00:00:08]} 4. e5 {[%clk 01:32:10]} {[%emt 00:00:07]} Nfd7
{[%clk 01:31:46]} {[%emt 00:00:08]} 5. Bd3 {[%clk 01:32:28]} {[%emt 00:00:12]}
c5 {[%clk 01:31:48]} {[%emt 00:00:28]} 6. c3 {[%clk 01:32:51]} {[%emt
00:00:07]} Nc6 {[%clk 01:31:58]} {[%emt 00:00:20]} 7. Ne2 {[%clk 01:33:13]}
{[%emt 00:00:08]} cxd4 {[%clk 01:30:33]} {[%emt 00:01:55]} 8. cxd4 {[%clk
01:33:38]} {[%emt 00:00:05]} f6 {[%clk 01:29:51]} {[%emt 00:01:11]} 9. exf6
{[%clk 01:33:58]} {[%emt 00:00:11]} Nxf6 {[%clk 01:30:14]} {[%emt 00:00:07]} 10.
Nf3 {[%clk 01:32:28]} {[%emt 00:02:01]} Be7 {[%clk 01:26:12]} {[%emt 00:04:31]}
11. O-O {[%clk 01:31:50]} {[%emt 00:01:08]} O-O {[%clk 01:25:37]} {[%emt
00:01:05]} 12. Bg5 {[%clk 01:28:47]} {[%emt 00:03:33]} Ng4 {[%clk 01:15:29]}
{[%emt 00:10:38]} 13. Bxe7 {[%clk 01:26:58]} {[%emt 00:02:19]} Qxe7 {[%clk
01:14:47]} {[%emt 00:01:12]} 14. h3 {[%clk 01:25:06]} {[%emt 00:02:22]} Nf6
{[%clk 01:11:31]} {[%emt 00:03:46]} 15. Ng3 {[%clk 01:19:35]} {[%emt 00:06:01]}
e5 {[%clk 01:04:03]} {[%emt 00:07:57]} 16. dxe5 {[%clk 01:17:48]} {[%emt
00:02:17]} Nxe5 {[%clk 01:04:00]} {[%emt 00:00:33]} 17. Re1 {[%clk 01:16:26]}
{[%emt 00:01:52]} Nxf3+ {[%clk 01:03:52]} {[%emt 00:00:38]} 18. Qxf3 {[%clk
01:14:21]} {[%emt 00:02:35]} Qd6 {[%clk 00:59:57]} {[%emt 00:04:24]} 19. Bf5
{[%clk 01:05:22]} {[%emt 00:09:30]} Ne4 {[%clk 00:51:06]} {[%emt 00:09:20]} 20.
Nxe4 {[%clk 01:03:01]} {[%emt 00:02:51]} dxe4 {[%clk 00:51:12]} {[%emt
00:00:25]} 21. Qb3+ {[%clk 01:03:12]} {[%emt 00:00:19]} Rf7 {[%clk 00:50:01]}
{[%emt 00:01:40]} 22. Bxh7+ {[%clk 01:02:32]} {[%emt 00:01:10]} Kf8 {[%clk
00:47:23]} {[%emt 00:03:08]} 23. Rad1 {[%clk 01:01:19]} {[%emt 00:01:43]} Qf6
{[%clk 00:47:20]} {[%emt 00:00:34]} 24. Qb4+ {[%clk 01:00:04]} {[%emt
00:01:46]} Qe7 {[%clk 00:46:15]} {[%emt 00:01:35]} 25. Rd8# {[%clk 01:00:24]}
{[%emt 00:00:09]} 1-0

[Event "NJSK 2023 Jeugd C"]
[Site "Almelo, Netherlands"]
[Date "2023.04.30"]
[Round "1.3"]
[White "Vijver, Jonathan"]
[Black "Arnold, Rhys"]
[Result "1/2-1/2"]
[TimeControl "90min/40moves + 30min + 30sec/move"]
[WhiteElo "1781"]
[BlackElo "2003"]

1. e4 {[%clk 01:30:43]} {[%emt 00:00:16]} c5 {[%clk 01:30:17]} {[%emt
00:00:43]} 2. d4 {[%clk 01:31:01]} {[%emt 00:00:11]} cxd4 {[%clk 01:30:43]}
{[%emt 00:00:04]} 3. c3 {[%clk 01:31:27]} {[%emt 00:00:04]} dxc3 {[%clk
01:31:10]} {[%emt 00:00:03]} 4. Nxc3 {[%clk 01:31:52]} {[%emt 00:00:05]} Nc6
{[%clk 01:31:38]} {[%emt 00:00:02]} 5. Nf3 {[%clk 01:32:09]} {[%emt 00:00:13]}
e6 {[%clk 01:32:03]} {[%emt 00:00:05]} 6. Bc4 {[%clk 01:32:32]} {[%emt
00:00:06]} a6 {[%clk 01:32:28]} {[%emt 00:00:06]} 7. O-O {[%clk 01:32:56]}
{[%emt 00:00:05]} Nge7 {[%clk 01:32:50]} {[%emt 00:00:08]} 8. Bg5 {[%clk
01:32:46]} {[%emt 00:00:40]} h6 {[%clk 01:33:06]} {[%emt 00:00:14]} 9. Be3
{[%clk 01:33:06]} {[%emt 00:00:10]} b5 {[%clk 01:20:34]} {[%emt 00:13:03]} 10.
Bb3 {[%clk 01:32:49]} {[%emt 00:00:45]} Na5 {[%clk 01:12:30]} {[%emt 00:08:36]}
11. Re1 {[%clk 01:11:10]} {[%emt 00:22:08]} Bb7 {[%clk 01:04:43]} {[%emt
00:08:17]} 12. Ne5 {[%clk 01:09:27]} {[%emt 00:02:13]} Qc7 {[%clk 00:33:15]}
{[%emt 00:31:59]} 13. Bf4 {[%clk 00:58:04]} {[%emt 00:11:53]} Nxb3 {[%clk
00:23:49]} {[%emt 00:09:56]} 14. Qxb3 {[%clk 00:46:37]} {[%emt 00:11:56]} d6
{[%clk 00:23:42]} {[%emt 00:00:38]} 15. Nf3 {[%clk 00:46:41]} {[%emt 00:00:25]}
Ng6 {[%clk 00:21:22]} {[%emt 00:02:50]} 16. Be3 {[%clk 00:45:53]} {[%emt
00:01:17]} Be7 {[%clk 00:20:29]} {[%emt 00:01:25]} 17. Rac1 {[%clk 00:45:45]}
{[%emt 00:00:37]} Qa5 {[%clk 00:19:07]} {[%emt 00:01:54]} 18. a3 {[%clk
00:16:29]} {[%emt 00:29:46]} O-O {[%clk 00:17:36]} {[%emt 00:02:01]} 19. Bd2
{[%clk 00:15:21]} {[%emt 00:01:38]} Qd8 {[%clk 00:15:48]} {[%emt 00:02:18]} 20.
a4 {[%clk 00:14:19]} {[%emt 00:01:32]} Rb8 {[%clk 00:15:18]} {[%emt 00:01:00]}
21. axb5 {[%clk 00:13:41]} {[%emt 00:01:08]} axb5 {[%clk 00:15:31]} {[%emt
00:00:17]} 22. Be3 {[%clk 00:12:52]} {[%emt 00:01:18]} Qd7 {[%clk 00:12:51]}
{[%emt 00:03:10]} 23. Ra1 {[%clk 00:06:45]} {[%emt 00:06:38]} Rfc8 {[%clk
00:05:56]} {[%emt 00:07:25]} 24. Ra7 {[%clk 00:06:03]} {[%emt 00:01:12]} Qe8
{[%clk 00:06:09]} {[%emt 00:00:17]} 25. Ra5 {[%clk 00:02:58]} {[%emt 00:03:35]}
Bc6 {[%clk 00:06:06]} {[%emt 00:00:33]} 26. Nd4 {[%clk 00:03:08]} {[%emt
00:00:20]} b4 {[%clk 00:06:15]} {[%emt 00:00:20]} 27. Nce2 {[%clk 00:02:44]}
{[%emt 00:00:55]} Kh7 {[%clk 00:05:22]} {[%emt 00:01:24]} 28. Ng3 {[%clk
00:02:41]} {[%emt 00:00:32]} Bf6 {[%clk 00:05:09]} {[%emt 00:00:43]} 29. f3
{[%clk 00:01:41]} {[%emt 00:01:30]} Bd7 {[%clk 00:04:41]} {[%emt 00:00:58]} 30.
Nh5 {[%clk 00:01:46]} {[%emt 00:00:24]} Bxd4 {[%clk 00:04:42]} {[%emt
00:00:29]} 31. Bxd4 {[%clk 00:02:12]} {[%emt 00:00:04]} e5 {[%clk 00:05:06]}
{[%emt 00:00:05]} 32. Be3 {[%clk 00:02:23]} {[%emt 00:00:19]} Qd8 {[%clk
00:03:49]} {[%emt 00:01:48]} 33. Qxf7 {[%clk 00:02:22]} {[%emt 00:00:31]} Qe7
{[%clk 00:04:04]} {[%emt 00:00:16]} 34. Qxe7 {[%clk 00:01:59]} {[%emt
00:00:52]} Nxe7 {[%emt 00:00:08]} 35. Ra7 {[%clk 00:01:48]} {[%emt 00:00:38]}
Rd8 {[%clk 00:04:06]} {[%emt 00:00:53]} 36. Rc1 {[%clk 00:02:11]} {[%emt
00:00:07]} Nc8 {[%clk 00:01:53]} {[%emt 00:02:44]} 37. Rac7 {[%clk 00:01:19]}
{[%emt 00:01:22]} Kg6 {[%clk 00:02:12]} {[%emt 00:00:10]} 38. Ng3 {[%clk
00:01:38]} {[%emt 00:00:11]} b3 {[%clk 00:02:12]} {[%emt 00:00:30]} 39. Ne2
{[%clk 00:01:43]} {[%emt 00:00:25]} Nb6 {[%clk 00:02:32]} {[%emt 00:00:11]} 40.
Bxb6 {[%clk 00:01:46]} {[%emt 00:00:27]} Rxb6 {[%clk 00:02:56]} {[%emt
00:00:06]} 41. Ra7 {[%clk 00:02:01]} {[%emt 00:00:16]} Bc6 {[%clk 00:02:25]}
{[%emt 00:01:01]} 42. Rc7 {[%clk 00:01:37]} {[%emt 00:00:54]} Bd7 {[%clk
00:02:46]} {[%emt 00:00:09]} 43. R1c3 {[%clk 00:01:23]} {[%emt 00:00:44]} Kf6
{[%clk 00:01:55]} {[%emt 00:01:22]} 44. Nc1 {[%clk 00:01:42]} {[%emt 00:00:11]}
Be6 {[%clk 00:02:18]} {[%emt 00:00:06]} 45. Kf2 {[%clk 00:01:59]} {[%emt
00:00:13]} Ra8 {[%clk 00:02:26]} {[%emt 00:00:22]} 46. Nd3 {[%clk 00:02:14]}
{[%emt 00:00:15]} Ra2 {[%clk 00:02:26]} {[%emt 00:00:30]} 47. g3 {[%clk
00:02:15]} {[%emt 00:00:29]} Ra1 {[%clk 00:02:09]} {[%emt 00:00:48]} 48. Rc1
{[%clk 00:01:35]} {[%emt 00:01:10]} Rba6 {[%clk 00:02:00]} {[%emt 00:00:39]} 49.
f4 {[%clk 00:01:25]} {[%emt 00:00:40]} exf4 {[%clk 00:02:14]} {[%emt 00:00:15]}
50. gxf4 {[%clk 00:01:50]} {[%emt 00:00:05]} R6a2 {[%clk 00:01:51]} {[%emt
00:00:53]} 51. Rxa1 {[%clk 00:01:34]} {[%emt 00:00:47]} Rxa1 {[%clk 00:02:16]}
{[%emt 00:00:05]} 52. Rc6 {[%clk 00:01:33]} {[%emt 00:00:31]} Ke7 {[%clk
00:02:16]} {[%emt 00:00:30]} 53. Rc7+ {[%clk 00:01:58]} {[%emt 00:00:05]} Kf6
{[%clk 00:02:42]} {[%emt 00:00:04]} 54. Rc6 {[%clk 00:02:25]} {[%emt 00:00:03]}
1/2-1/2

[Event "NJSK 2023 Jeugd C"]
[Site "Almelo, Netherlands"]
[Date "2023.04.30"]
[Round "1.4"]
[White "Groenewoud, Joel"]
[Black "Chua, Ethan"]
[Result "1-0"]
[TimeControl "90min/40moves + 30min + 30sec/move"]
[WhiteElo "1990"]
[BlackElo "1776"]

1. e4 {[%clk 01:30:58]} e6 {[%clk 01:30:56]} {[%emt 00:00:04]} 2. d4 {[%clk
01:31:21]} {[%emt 00:00:08]} d5 {[%clk 01:31:22]} {[%emt 00:00:04]} 3. Nc3
{[%clk 01:31:42]} {[%emt 00:00:09]} dxe4 {[%clk 01:31:30]} {[%emt 00:00:22]} 4.
Nxe4 {[%clk 01:32:00]} {[%emt 00:00:12]} Be7 {[%clk 01:30:33]} {[%emt
00:01:27]} 5. Nf3 {[%clk 01:31:24]} {[%emt 00:01:06]} Nf6 {[%clk 01:30:56]}
{[%emt 00:00:07]} 6. Nxf6+ {[%clk 01:31:13]} {[%emt 00:00:41]} Bxf6 {[%clk
01:31:22]} {[%emt 00:00:05]} 7. Bd3 {[%clk 01:30:40]} {[%emt 00:01:03]} O-O
{[%clk 01:29:33]} {[%emt 00:02:19]} 8. Be3 {[%clk 01:28:56]} {[%emt 00:02:14]}
Nd7 {[%clk 01:27:41]} {[%emt 00:02:22]} 9. c3 {[%clk 01:26:02]} {[%emt
00:03:24]} Re8 {[%clk 01:26:38]} {[%emt 00:01:32]} 10. Qc2 {[%clk 01:25:14]}
{[%emt 00:01:18]} h6 {[%clk 01:26:14]} {[%emt 00:00:54]} 11. O-O-O {[%clk
01:23:40]} {[%emt 00:02:04]} c6 {[%clk 01:24:44]} {[%emt 00:02:00]} 12. g4
{[%clk 01:17:01]} {[%emt 00:07:09]} Qa5 {[%clk 01:24:11]} {[%emt 00:01:02]} 13.
Kb1 {[%clk 01:15:41]} {[%emt 00:01:51]} e5 {[%clk 01:22:14]} {[%emt 00:02:26]}
14. h4 {[%clk 01:05:51]} {[%emt 00:10:21]} exd4 {[%clk 01:14:09]} {[%emt
00:08:35]} 15. cxd4 {[%clk 01:03:04]} {[%emt 00:03:16]} Qd5 {[%clk 01:12:04]}
{[%emt 00:02:36]} 16. Rh3 {[%clk 00:53:11]} {[%emt 00:10:22]} Nf8 {[%clk
00:47:03]} {[%emt 00:25:32]} 17. Rg3 {[%clk 00:45:19]} {[%emt 00:08:22]} Bd8
{[%clk 00:38:26]} {[%emt 00:09:07]} 18. g5 {[%clk 00:40:21]} {[%emt 00:05:28]}
h5 {[%clk 00:35:03]} {[%emt 00:03:53]} 19. g6 {[%clk 00:38:29]} {[%emt
00:02:22]} Be6 {[%clk 00:35:03]} {[%emt 00:00:30]} 20. gxf7+ {[%clk 00:37:45]}
{[%emt 00:01:13]} Bxf7 {[%clk 00:35:26]} {[%emt 00:00:07]} 21. b3 {[%clk
00:36:09]} {[%emt 00:02:05]} b5 {[%clk 00:32:06]} {[%emt 00:03:51]} 22. Ne5
{[%clk 00:32:35]} {[%emt 00:04:03]} Bf6 {[%clk 00:31:43]} {[%emt 00:00:53]} 23.
Nxf7 {[%clk 00:18:31]} {[%emt 00:14:34]} Kxf7 {[%clk 00:28:48]} {[%emt
00:03:25]} 24. Bg5 {[%clk 00:12:00]} {[%emt 00:07:01]} Re6 {[%clk 00:24:36]}
{[%emt 00:04:42]} 25. Bf5 {[%clk 00:09:19]} {[%emt 00:03:11]} Rd6 {[%clk
00:24:18]} {[%emt 00:00:48]} 26. Be4 {[%clk 00:08:29]} {[%emt 00:01:19]} Qe6
{[%clk 00:23:24]} {[%emt 00:01:24]} 27. Bxf6 {[%emt 00:01:45]} gxf6 {[%clk
00:22:30]} {[%emt 00:00:06]} 28. Bg6+ {[%clk 00:08:32]} {[%emt 00:00:30]} Nxg6
{[%clk 00:21:47]} {[%emt 00:01:13]} 29. Qxg6+ {[%clk 00:08:54]} {[%emt
00:00:08]} Kf8 {[%clk 00:22:06]} {[%emt 00:00:11]} 30. Qg7+ {[%clk 00:09:13]}
{[%emt 00:00:12]} Ke8 {[%clk 00:22:25]} {[%emt 00:00:11]} 31. Qh8+ {[%clk
00:09:21]} {[%emt 00:00:22]} Kd7 {[%clk 00:22:18]} {[%emt 00:00:37]} 32. Rg7+
{[%clk 00:09:44]} {[%emt 00:00:06]} Qe7 {[%clk 00:22:39]} {[%emt 00:00:09]} 33.
Rxe7+ {[%clk 00:10:00]} {[%emt 00:00:15]} Kxe7 {[%clk 00:23:06]} {[%emt
00:00:03]} 34. Qxa8 {[%clk 00:09:49]} {[%emt 00:00:10]} 1-0

[Event "NJSK 2023 Jeugd C"]
[Site "Almelo, Netherlands"]
[Date "2023.04.30"]
[Round "1.5"]
[White "Roorda, Cas"]
[Black "Terlouw, Wouter"]
[Result "0-1"]
[TimeControl "90min/40moves + 30min + 30sec/move"]
[WhiteElo "1769"]
[BlackElo "1923"]

1. e4 {[%clk 01:30:57]} {[%emt 00:03:34]} c5 {[%clk 01:30:52]} 2. Nf3 {[%clk
01:31:22]} Nc6 {[%clk 01:31:18]} 3. d4 {[%clk 01:31:46]} cxd4 {[%clk 01:31:42]}
4. Nxd4 {[%clk 01:32:10]} Nf6 {[%clk 01:31:16]} 5. Nc3 {[%clk 01:32:32]} e5
{[%clk 01:31:11]} 6. Ndb5 {[%clk 01:32:56]} d6 {[%clk 01:31:21]} 7. Nd5 {[%clk
01:33:18]} Nxd5 {[%clk 01:31:16]} 8. exd5 {[%clk 01:33:42]} Nb8 {[%clk
01:31:28]} 9. c4 {[%clk 01:34:07]} Be7 {[%clk 01:31:49]} 10. Bd3 {[%clk
01:33:31]} O-O {[%clk 01:31:47]} 11. O-O {[%clk 01:33:28]} a6 {[%clk 01:31:57]}
12. Nc3 {[%clk 01:33:53]} f5 {[%clk 01:31:53]} 13. f3 {[%clk 01:33:27]} Nd7
{[%clk 01:31:43]} 14. Kh1 {[%clk 01:33:15]} Nc5 {[%clk 01:29:48]} 15. Bc2
{[%clk 01:33:32]} a5 {[%clk 01:29:42]} 16. a3 {[%clk 01:32:26]} Qe8 {[%clk
01:21:43]} {[%emt 00:04:55]} 17. Be3 {[%clk 01:22:48]} {[%emt 00:10:08]} Rf6
{[%clk 01:19:41]} {[%emt 00:02:32]} 18. Qd2 {[%clk 01:11:01]} {[%emt 00:12:17]}
f4 {[%clk 01:16:36]} {[%emt 00:03:35]} 19. Bg1 {[%clk 01:11:02]} {[%emt
00:00:28]} a4 {[%clk 01:13:34]} {[%emt 00:03:33]} 20. Nb5 {[%clk 00:41:25]}
{[%emt 00:30:05]} Qh5 {[%clk 01:06:18]} {[%emt 00:07:47]} 21. Bxc5 {[%clk
00:38:56]} {[%emt 00:03:00]} dxc5 {[%clk 01:06:14]} {[%emt 00:00:33]} 22. d6
{[%clk 00:39:18]} {[%emt 00:00:08]} Bxd6 {[%clk 01:03:43]} {[%emt 00:03:02]} 23.
Nxd6 {[%clk 00:39:10]} {[%emt 00:00:38]} Rh6 {[%clk 01:04:00]} {[%emt
00:00:11]} 24. g4 {[%clk 00:27:51]} {[%emt 00:11:52]} fxg3 {[%clk 01:04:20]}
{[%emt 00:00:10]} 25. Nxc8 {[%clk 00:23:04]} {[%emt 00:05:16]} Qxh2+ {[%clk
01:03:11]} {[%emt 00:01:39]} 26. Qxh2 {[%clk 00:23:29]} {[%emt 00:00:05]} Rxh2+
{[%clk 01:03:34]} {[%emt 00:00:06]} 27. Kg1 {[%clk 00:23:55]} {[%emt 00:00:04]}
Rxc2 {[%clk 01:03:20]} {[%emt 00:00:45]} 28. Ne7+ {[%clk 00:23:34]} {[%emt
00:00:50]} Kf7 {[%clk 01:03:21]} {[%emt 00:00:27]} 29. Nf5 {[%clk 00:23:27]}
{[%emt 00:00:41]} Rd8 {[%clk 01:01:51]} {[%emt 00:01:57]} 30. Rfd1 {[%clk
00:21:15]} {[%emt 00:02:44]} Rxd1+ {[%clk 01:00:23]} {[%emt 00:01:59]} 31. Rxd1
{[%clk 00:21:40]} {[%emt 00:00:05]} Rxb2 {[%clk 01:00:46]} {[%emt 00:00:07]} 32.
Nxg3 {[%clk 00:13:56]} {[%emt 00:08:14]} Rb3 {[%clk 01:00:20]} {[%emt
00:00:56]} 33. Ne4 {[%clk 00:12:54]} {[%emt 00:01:32]} Rxa3 {[%clk 00:52:44]}
{[%emt 00:08:05]} 34. Kf2 {[%clk 00:12:40]} {[%emt 00:00:44]} b6 {[%clk
00:50:35]} {[%emt 00:02:40]} 35. Rd7+ {[%clk 00:12:56]} {[%emt 00:00:14]} Kg8
{[%clk 00:47:21]} {[%emt 00:03:41]} 36. Rd8+ {[%clk 00:13:16]} {[%emt
00:00:13]} Kf7 {[%clk 00:47:42]} {[%emt 00:00:09]} 37. Rd7+ {[%clk 00:13:43]}
{[%emt 00:00:03]} Kf8 {[%clk 00:46:51]} {[%emt 00:01:21]} 38. Ra7 {[%clk
00:13:22]} {[%emt 00:00:51]} Ra1 {[%clk 00:45:32]} {[%emt 00:01:48]} 39. Nc3
{[%clk 00:11:07]} {[%emt 00:02:45]} a3 {[%clk 00:43:39]} {[%emt 00:02:24]} 40.
Ke2 {[%clk 00:10:50]} {[%emt 00:00:46]} h5 {[%clk 00:43:33]} {[%emt 00:00:36]}
41. Kf2 {[%clk 00:09:18]} {[%emt 00:02:03]} Kg8 {[%clk 00:43:17]} {[%emt
00:00:44]} 42. Ra6 {[%clk 00:08:16]} {[%emt 00:01:35]} Kf7 {[%clk 00:41:42]}
{[%emt 00:02:04]} 43. Kg3 {[%clk 00:08:22]} {[%emt 00:00:23]} g6 {[%clk
00:39:57]} {[%emt 00:02:15]} 44. Kg2 {[%clk 00:07:04]} {[%emt 00:01:49]} Kg7
{[%clk 00:39:50]} {[%emt 00:00:35]} 45. Nb5 {[%clk 00:04:34]} {[%emt 00:03:02]}
a2 {[%clk 00:40:04]} {[%emt 00:00:16]} 46. Nc7 {[%clk 00:04:16]} {[%emt
00:00:48]} h4 {[%clk 00:37:06]} {[%emt 00:03:28]} 47. Nd5 {[%clk 00:04:28]}
{[%emt 00:00:18]} h3+ {[%clk 00:33:24]} {[%emt 00:04:13]} 48. Kh2 {[%clk
00:04:54]} {[%emt 00:00:03]} g5 {[%clk 00:31:31]} {[%emt 00:02:24]} 49. Ra7+
{[%clk 00:03:01]} {[%emt 00:02:22]} Kh6 {[%clk 00:31:21]} {[%emt 00:00:31]} 50.
Ra6 {[%clk 00:02:35]} {[%emt 00:01:06]} Kh5 {[%clk 00:28:39]} {[%emt 00:03:10]}
51. Ra7 {[%clk 00:03:01]} {[%emt 00:00:04]} Kg6 {[%clk 00:26:24]} {[%emt
00:02:34]} 52. Ne7+ {[%clk 00:02:12]} {[%emt 00:01:30]} Kf6 {[%clk 00:25:00]}
{[%emt 00:01:53]} 53. Nd5+ {[%clk 00:02:40]} {[%emt 00:00:04]} Kf5 {[%clk
00:20:24]} {[%emt 00:05:03]} 54. Ra8 {[%clk 00:01:15]} {[%emt 00:01:59]} e4
{[%clk 00:19:23]} {[%emt 00:01:31]} 55. fxe4+ {[%clk 00:01:26]} {[%emt
00:00:19]} Kxe4 {[%clk 00:18:57]} {[%emt 00:00:56]} 56. Nxb6 {[%clk 00:00:31]}
{[%emt 00:01:24]} g4 {[%clk 00:19:02]} {[%emt 00:00:25]} 0-1